bitfinex/quotes_BTCUSD_20260221
["timestamp","ask_amount","ask_price","bid_price","bid_amount"]
[1771701673348,0.07287911,68607.0,68599.0,0.07288676]
[1771701673517,0.07287911,68607.0,68595.0,0.29156417]
[1771701673720,0.07387911,68607.0,68600.0,0.07288577]
[1771701673939,0.07287911,68607.0,68600.0,0.07288577]
[1771701675667,0.21573109,68606.0,68598.0,0.07310772]
[1771701675869,0.21573109,68606.0,68598.0,0.00022]
[1771701676068,0.07288209,68604.0,68598.0,0.00022]
[1771701676277,0.28861291,68605.0,68598.0,0.07310827]
[1771701676478,0.21573109,68605.0,68598.0,0.07310827]
[1771701676647,0.21573109,68605.0,68599.0,0.07288731]
[1771701676854,0.21573109,68605.0,68599.0,0.07288633]
[1771701680525,0.31365068,68605.0,68599.0,0.07288633]
[1771701682193,0.31365068,68605.0,68598.0,0.07310827]
[1771701682609,0.31385068,68605.0,68598.0,0.07310827]
[1771701683044,0.38673173,68605.0,68598.0,0.07310827]
[1771701684195,0.31385068,68605.0,68599.0,0.07288715]
[1771701685463,0.31385068,68605.0,68598.0,0.07310827]
[1771701687033,0.07288269,68604.0,68598.0,0.00022]
[1771701687371,0.17080253,68604.0,68598.0,0.00022]
[1771701688424,0.0002,68605.0,68599.0,0.07288717]
[1771701689451,0.09812031,68605.0,68598.0,0.00022]
[1771701689631,0.17080307,68604.0,68598.0,0.00022]
[1771701689835,0.09792031,68604.0,68598.0,0.07310806]
[1771701691295,0.09792031,68604.0,68598.0,0.07310801]
[1771701693160,0.09792031,68604.0,68599.0,0.07288718]
[1771701695509,0.09792031,68604.0,68599.0,0.07388718]
[1771701700076,0.0002,68605.0,68599.0,0.07388718]
[1771701701228,0.0002,68605.0,68599.0,0.07288718]
[1771701701731,0.0002,68605.0,68599.0,0.07310718]
[1771701704355,0.0002,68605.0,68601.0,0.07288513]
[1771701711558,0.0002,68605.0,68600.0,0.07288433]
[1771701712343,0.07308168,68605.0,68599.0,0.00022]
[1771701712739,0.0002,68605.0,68599.0,0.07310714]
[1771701713494,0.07308107,68605.0,68599.0,0.00022]
[1771701715195,0.09792091,68604.0,68599.0,0.00022]
[1771701715395,0.2117001,68604.0,68599.0,0.00022]
[1771701715595,0.09792099,68603.0,68599.0,0.00022]
[1771701716885,0.09792099,68603.0,68599.0,0.00122]
[1771701719238,0.0002,68605.0,68599.0,0.07410685]
[1771701720243,0.0002,68605.0,68599.0,0.07310685]
[1771701723741,0.09812298,68605.0,68599.0,0.07310685]
[1771701723949,0.09835098,68605.0,68599.0,0.07310685]
[1771701731870,0.05715086,68605.0,68601.0,0.07288449]
[1771701732071,0.000228,68605.0,68601.0,0.07288449]
[1771701733464,0.000228,68605.0,68599.0,0.07310717]
[1771701733693,0.000428,68605.0,68600.0,0.0728862]
[1771701734216,0.09835127,68605.0,68600.0,0.0728862]
[1771701737677,0.09835127,68605.0,68599.0,0.00022]
[1771701738894,0.07288306,68604.0,68599.0,0.00022]
[1771701739097,0.09792327,68603.0,68599.0,0.00022]
[1771701739338,0.17080649,68603.0,68599.0,0.00022]
[1771701739748,0.09792327,68603.0,68599.0,0.00022]
[1771701745271,0.17080642,68603.0,68599.0,0.00022]
[1771701745768,0.09792327,68603.0,68599.0,0.00022]
[1771701746272,0.09812327,68603.0,68599.0,0.00022]
[1771701747184,0.09812327,68603.0,68600.0,0.0150069]
[1771701747880,0.07288423,68602.0,68595.0,0.00022]
[1771701748081,0.09792467,68602.0,68595.0,0.07311131]
[1771701748905,0.07288523,68601.0,68595.0,0.00022]
[1771701749117,0.07288523,68601.0,68592.0,0.00022]
[1771701749413,0.07288523,68601.0,68592.0,0.0731144]
[1771701749632,0.2053216,68601.0,68592.0,0.00022]
[1771701749805,0.2053216,68601.0,68591.0,0.00022]
[1771701749806,0.07288867,68598.0,68591.0,0.07311549]
[1771701749999,0.09792781,68597.0,68591.0,0.07311549]
[1771701750222,0.09792781,68597.0,68591.0,0.00022]
[1771701750412,0.09792781,68597.0,68593.0,0.072893]
[1771701750796,0.09792781,68597.0,68592.0,0.07289458]
[1771701750998,0.09801461,68597.0,68592.0,0.07289458]
[1771701751194,0.09901461,68597.0,68592.0,0.07289458]
[1771701751373,0.09901461,68597.0,68591.0,0.00022]
[1771701751587,0.09801461,68597.0,68591.0,0.00022]
[1771701752833,0.09793022,68596.0,68591.0,0.00022]
[1771701752991,0.09801702,68596.0,68591.0,0.00022]
[1771701753631,0.09801702,68596.0,68590.0,0.0730569]
[1771701753793,0.09792992,68595.0,68589.0,0.02165079]
[1771701753993,0.07289209,68595.0,68588.0,0.00022]
[1771701754200,0.09792992,68594.0,68588.0,0.00022]
[1771701754936,0.09792992,68594.0,68588.0,0.0002824]
[1771701755285,0.09792992,68594.0,68588.0,0.07318096]
[1771701755586,0.17082273,68594.0,68588.0,0.0002824]
[1771701756094,0.09792992,68594.0,68588.0,0.0002824]
[1771701756285,0.09792992,68594.0,68588.0,0.07318113]
[1771701756688,0.07297802,68596.0,68587.0,0.00022]
[1771701756885,0.09793112,68594.0,68587.0,0.07313639]
[1771701757236,0.09793112,68593.0,68586.0,0.00022]
[1771701757438,0.09793112,68593.0,68585.0,0.07312019]
[1771701757615,0.09793112,68593.0,68587.0,0.07290009]
[1771701758021,0.07297802,68596.0,68588.0,0.07289885]
[1771701758214,0.09793112,68595.0,68588.0,0.07289885]
[1771701758443,0.17082276,68595.0,68588.0,0.07289885]
[1771701759196,0.17082276,68595.0,68585.0,0.00022]
[1771701759197,0.07289268,68594.0,68586.0,0.07290117]
[1771701759388,0.17082501,68593.0,68586.0,0.07290117]
[1771701759718,0.09793112,68593.0,68585.0,0.07312155]
[1771701759923,0.09793112,68593.0,68588.0,0.00022]
[1771701761772,0.09793112,68593.0,68588.0,0.0731189]
[1771701762178,0.09793112,68593.0,68589.0,0.0728974]
[1771701763381,0.09793112,68593.0,68588.0,0.0731189]
[1771701768518,0.09793112,68593.0,68588.0,0.00022]
[1771701769892,0.09793112,68593.0,68587.0,0.07289937]
[1771701770934,0.20021307,68593.0,68584.0,0.00022]
[1771701771236,0.17083168,68590.0,68584.0,0.00022]
[1771701771589,0.07289873,68589.0,68584.0,0.00022]
[1771701771810,0.09785426,68588.0,68584.0,0.00022]
[1771701772029,0.09785426,68588.0,68584.0,7.553e-05]
[1771701772790,0.09785426,68588.0,68584.0,0.00107553]
[1771701772989,0.09785426,68588.0,68584.0,7.553e-05]
[1771701773539,0.09785426,68588.0,68584.0,0.00107553]
[1771701776201,0.09785426,68588.0,68584.0,7.553e-05]
[1771701776635,0.09785426,68588.0,68584.0,0.00107553]
[1771701777526,0.17075386,68588.0,68581.0,0.07312545]
[1771701777729,0.09793887,68587.0,68581.0,0.07312545]
[1771701779853,0.09793887,68587.0,68584.0,0.00022]
[1771701780219,0.07289445,68593.0,68585.0,0.07290197]
[1771701780553,0.07289454,68593.0,68585.0,0.07290135]
[1771701780710,0.07289251,68595.0,68585.0,0.07290135]
[1771701781540,0.07289445,68593.0,68585.0,0.07290135]
[1771701782690,0.0728948,68592.0,68585.0,0.07290135]
[1771701783059,0.0728948,68592.0,68585.0,0.08290135]
[1771701783710,0.0728948,68592.0,68585.0,0.01]
[1771701784395,0.29156373,68596.0,68585.0,0.0101284]
[1771701785497,0.07289443,68593.0,68585.0,0.0830306]
[1771701786977,0.0002,68592.0,68585.0,0.0830306]
[1771701787183,0.27313566,68600.0,68585.0,0.0101284]
[1771701787184,0.29155632,68598.0,68585.0,0.0101284]
[1771701787410,0.07289367,68594.0,68586.0,0.07290114]
[1771701788438,0.072894,68593.0,68586.0,0.07310954]
[1771701789232,0.09793564,68607.0,68589.0,0.18355062]
[1771701789428,0.00012,68605.0,68590.0,0.27909507]
[1771701789631,0.00012,68605.0,68590.0,0.20619921]
[1771701789841,0.00012,68605.0,68597.0,0.07288844]
[1771701790300,0.00012,68605.0,68596.0,0.07289023]
[1771701790301,0.0728821,68604.0,68596.0,0.07289023]
[1771701790500,0.0728821,68604.0,68596.0,0.07297363]
[1771701792749,0.07288315,68603.0,68596.0,0.07297363]
[1771701796115,0.0002,68604.0,68599.0,0.07288698]
[1771701796293,0.0002,68604.0,68596.0,8.34e-05]
[1771701796475,0.0002,68604.0,68597.0,0.07288863]
[1771701801132,0.00012,68605.0,68598.0,0.07288753]
[1771701801451,0.07300102,68605.0,68598.0,0.07288753]
[1771701802782,0.00012,68605.0,68599.0,0.07288727]
[1771701803054,0.00012,68605.0,68599.0,0.07288735]
[1771701804459,0.00016,68610.0,68596.0,8.34e-05]
[1771701804685,0.20141289,68617.0,68600.0,0.02284859]
[1771701804883,0.24799716,68628.0,68610.0,0.00016]
[1771701804884,0.27482525,68626.0,68610.0,0.00016]
[1771701805104,0.27482758,68624.0,68615.0,0.0728693]
[1771701805292,0.07286218,68623.0,68615.0,0.0728693]
[1771701805505,0.07286218,68623.0,68616.0,0.07286921]
[1771701805702,0.07286218,68623.0,68614.0,0.0728693]
[1771701806618,0.07306218,68623.0,68615.0,0.07287036]
[1771701806797,0.07286316,68622.0,68615.0,0.07287036]
[1771701808200,0.27502791,68623.0,68615.0,0.07287036]
[1771701809168,0.07286317,68622.0,68615.0,0.07287036]
[1771701810005,0.07286317,68622.0,68614.0,0.0728693]
[1771701810780,0.20216579,68623.0,68614.0,0.0728693]
[1771701810978,0.000125,68627.0,68613.0,0.16324711]
[1771701811184,0.000125,68627.0,68621.0,0.07286394]
[1771701811833,0.000125,68627.0,68622.0,0.07286267]
[1771701814093,0.000125,68627.0,68623.0,0.07286174]
[1771701815510,0.0728544,68632.0,68623.0,0.07286174]
[1771701815731,0.07295086,68632.0,68623.0,0.07286174]
[1771701815959,0.27436375,68632.0,68623.0,0.07286174]
[1771701816683,0.07285447,68630.0,68623.0,0.07286174]
[1771701820889,0.27415109,68630.0,68623.0,0.07286174]
[1771701821807,9.646e-05,68632.0,68621.0,0.29145458]
[1771701821947,9.646e-05,68632.0,68630.0,0.07285416]
[1771701822153,9.646e-05,68632.0,68629.0,0.07285542]
[1771701822391,9.646e-05,68632.0,68630.0,0.07285397]
[1771701823463,0.17094184,68637.0,68620.0,0.16340711]
[1771701823464,0.000125,68641.0,68626.0,0.16324711]
[1771701823801,0.000125,68641.0,68636.0,0.07284776]
[1771701823987,0.000125,68641.0,68635.0,0.07284884]
[1771701824684,0.000125,68641.0,68634.0,0.07284813]
[1771701824887,0.000125,68641.0,68626.0,0.29143294]
[1771701824888,0.000265,68640.0,68627.0,0.07285762]
[1771701825085,0.07284519,68639.0,68632.0,0.07285227]
[1771701825878,0.07295019,68639.0,68632.0,0.07285227]
[1771701827551,0.000105,68639.0,68633.0,0.07285077]
[1771701829992,0.000105,68639.0,68630.0,0.45466317]
[1771701830290,0.000105,68639.0,68635.0,0.07284875]
[1771701832390,0.000105,68639.0,68633.0,0.07285045]
[1771701833168,0.000305,68639.0,68633.0,0.07285045]
[1771701835270,0.000305,68639.0,68627.0,9.646e-05]
[1771701835271,0.20465763,68632.0,68611.0,0.000173]
[1771701835509,0.20465763,68630.0,68611.0,0.000173]
[1771701835885,0.20465763,68630.0,68611.0,0.00329252]
[1771701836268,0.20465763,68630.0,68625.0,0.07285764]
[1771701836451,0.20465763,68630.0,68626.0,0.07285773]
[1771701838624,0.20465763,68630.0,68627.0,0.07285758]
[1771701841399,0.00011668,68632.0,68629.0,0.07285549]
[1771701841599,0.00011668,68632.0,68631.0,0.07285337]
[1771701842383,0.00011668,68632.0,68629.0,0.07285549]
[1771701842499,0.00011668,68632.0,68630.0,0.07285419]
[1771701842700,0.20477431,68632.0,68629.0,0.07285549]
[1771701843055,0.00011668,68632.0,68627.0,0.07285683]
[1771701843264,0.00011668,68632.0,68626.0,0.29143286]
[1771701843265,0.00011668,68632.0,68630.0,0.07285401]
[1771701845789,0.00011668,68632.0,68630.0,0.07307401]
[1771701848060,0.00011668,68632.0,68630.0,0.00022]
[1771701852363,0.19015947,68632.0,68629.0,0.07285527]
[1771701858763,0.19015947,68632.0,68629.0,0.07307527]
[1771701858965,0.19035947,68632.0,68629.0,0.07307527]
[1771701861663,0.19035947,68632.0,68630.0,0.07285437]
[1771701866223,0.19035947,68632.0,68630.0,0.07307437]
[1771701871983,0.000105,68638.0,68630.0,0.00022]
[1771701872186,0.000105,68638.0,68630.0,0.07307337]
[1771701872429,0.0002,68632.0,68631.0,0.07285337]
[1771701872600,0.000105,68638.0,68632.0,0.07285171]
[1771701872742,0.19025113,68638.0,68632.0,0.07285171]
[1771701873501,0.19025113,68638.0,68634.0,0.07284982]
[1771701873700,0.19014613,68636.0,68634.0,0.07284982]
[1771701878227,0.19014613,68636.0,68634.0,0.06872376]
[1771701878437,0.19014613,68636.0,68631.0,0.07285236]
[1771701878630,0.09788501,68636.0,68631.0,0.07285236]
[1771701878886,0.19014613,68635.0,68631.0,0.07285236]
[1771701879567,0.19014613,68635.0,68632.0,0.07285193]
[1771701883184,0.19014613,68635.0,68631.0,0.07285308]
[1771701884442,0.09788641,68635.0,68631.0,0.07285308]
[1771701884642,0.19014613,68634.0,68631.0,0.07285308]
[1771701885595,0.09788687,68634.0,68630.0,0.07307408]
[1771701885768,0.19014613,68633.0,68630.0,0.07307408]
[1771701886314,0.19043493,68633.0,68630.0,0.07307408]
[1771701891254,0.19043493,68633.0,68631.0,0.07285333]
[1771701891614,0.17102693,68633.0,68617.0,0.29147142]
[1771701891821,0.19014613,68632.0,68626.0,0.07285776]
[1771701892522,0.19043493,68632.0,68626.0,0.07285776]
[1771701896657,0.19043493,68632.0,68623.0,0.00022]
[1771701896658,0.19014613,68626.0,68623.0,0.00022]
[1771701896898,0.19014613,68625.0,68623.0,0.00022]
[1771701897448,0.19030953,68625.0,68623.0,0.00022]
[1771701897998,0.19030953,68625.0,68623.0,0.07308176]
[1771701898385,0.0001634,68625.0,68623.0,0.07308176]
[1771701899102,0.0001634,68625.0,68624.0,0.0728608]
[1771701902641,0.0001634,68625.0,68623.0,0.00022]
[1771701902642,0.0001254,68631.0,68627.0,0.07285688]
[1771701902837,0.18301473,68631.0,68627.0,0.07285688]
[1771701904091,0.18301473,68631.0,68627.0,0.07271235]
[1771701904550,0.18301473,68631.0,68624.0,0.07286063]
[1771701905516,0.18301473,68631.0,68626.0,0.00022]
[1771701905860,0.18288933,68629.0,68626.0,0.00022]
[1771701907833,0.18288933,68629.0,68626.0,0.00122]
[1771701911836,0.18288933,68629.0,68626.0,0.00033668]
[1771701911983,0.18288933,68629.0,68626.0,0.00133668]
[1771701915259,0.36055049,68627.0,68620.0,0.00016]
[1771701915463,0.25854233,68627.0,68620.0,0.00016]
[1771701915660,0.36060046,68626.0,68620.0,0.00016]
[1771701915863,0.18568404,68625.0,68619.0,0.00022]
[1771701916049,0.07286273,68623.0,68616.0,0.00022]
[1771701916406,0.07286296,68622.0,68616.0,0.00022]
[1771701918020,0.18568404,68619.0,68612.0,0.00022]
[1771701918211,0.18568404,68619.0,68610.0,0.00016]
[1771701918212,0.07286837,68617.0,68610.0,0.07303497]
[1771701918394,0.29826793,68616.0,68610.0,0.00016]
[1771701919257,0.37113781,68616.0,68610.0,1.551e-05]
[1771701920161,0.37113781,68616.0,68610.0,0.00023551]
[1771701920318,0.29826793,68616.0,68610.0,0.00023551]
[1771701920927,0.29926793,68616.0,68610.0,0.00023551]
[1771701921302,0.29826793,68616.0,68610.0,0.07311056]
[1771701921504,0.11258389,68616.0,68610.0,0.07311056]
[1771701922142,0.11258389,68616.0,68611.0,0.07287409]
[1771701922287,0.11258389,68616.0,68610.0,0.07311056]
[1771701926483,0.11258389,68616.0,68611.0,0.07287448]
[1771701929107,0.11258389,68616.0,68610.0,0.07311106]
[1771701931473,0.11258389,68616.0,68610.0,0.00023551]
[1771701932692,0.11258389,68616.0,68610.0,9.105e-05]
[1771701933114,0.18568404,68615.0,68609.0,0.00022]
[1771701933347,0.30904144,68615.0,68609.0,0.07287673]
[1771701933831,0.38191186,68615.0,68608.0,0.07287761]
[1771701934068,0.25855446,68615.0,68610.0,0.00022]
[1771701934244,0.1233219,68614.0,68610.0,0.00022]
[1771701934792,0.18568404,68613.0,68610.0,0.00022]
[1771701935014,0.1233219,68614.0,68610.0,0.00022]
[1771701936022,0.30900594,68614.0,68610.0,0.00022]
[1771701936236,0.12329654,68613.0,68610.0,0.00022]
[1771701938621,0.00016,68620.0,68619.0,0.07286611]
[1771701938770,0.1894734,68627.0,68610.0,0.00022]
[1771701938771,0.1894734,68627.0,68618.0,0.07286712]
[1771701938955,0.07285851,68627.0,68619.0,0.07286569]
[1771701939953,0.07385851,68627.0,68619.0,0.07286569]
[1771701940331,0.07385775,68627.0,68620.0,0.07286503]
[1771701940534,0.07385775,68627.0,68619.0,0.07286576]
[1771701941311,0.07285775,68627.0,68619.0,0.07286576]
[1771701941609,0.07385775,68627.0,68619.0,0.07286576]
[1771701941808,0.07285775,68627.0,68619.0,0.07286576]
[1771701942392,0.07285873,68626.0,68619.0,0.07286576]
[1771701942812,0.07285873,68626.0,68619.0,0.07257679]
[1771701945763,0.07385873,68626.0,68619.0,0.07257679]
[1771701947320,0.07285873,68626.0,68619.0,0.07257679]
[1771701948392,0.0002,68629.0,68617.0,0.1632703]
[1771701948584,0.0002,68629.0,68622.0,0.07286277]
[1771701948834,0.0002,68629.0,68619.0,0.1632703]
[1771701949052,0.07304966,68635.0,68621.0,0.291452]
[1771701949258,0.07304966,68635.0,68626.0,0.07285831]
[1771701949259,0.00031668,68632.0,68626.0,0.07285831]
[1771701949401,0.00031668,68632.0,68627.0,0.07271272]
[1771701950461,0.00031668,68632.0,68625.0,0.07285766]
[1771701951086,0.00031668,68632.0,68626.0,0.07285868]
[1771701952973,0.00031668,68632.0,68627.0,0.07285663]
[1771701955447,0.00031668,68632.0,68626.0,0.07285668]
[1771701956654,0.00031668,68632.0,68627.0,0.07285758]
[1771701957219,0.07304942,68635.0,68628.0,0.07285655]
[1771701957426,0.000251,68635.0,68628.0,0.07285656]
[1771701958452,0.07310028,68635.0,68628.0,0.07285656]
[1771701960260,0.000251,68635.0,68629.0,0.07285547]
[1771701960502,0.0001254,68638.0,68633.0,0.07285096]
[1771701960628,0.11276069,68637.0,68631.0,0.07285278]
[1771701960873,0.11276069,68637.0,68631.0,0.07290378]
[1771701961841,0.11276069,68637.0,68631.0,5.1e-05]
[1771701961958,0.0002,68635.0,68631.0,5.1e-05]
[1771701962155,0.11276069,68637.0,68631.0,5.1e-05]
[1771701962361,0.10417007,68637.0,68631.0,5.1e-05]
[1771701962573,0.10417007,68637.0,68631.0,0.07285302]
[1771701963903,0.00016,68650.0,68625.0,0.1632703]
[1771701964073,0.00016,68650.0,68610.0,0.00038]
[1771701964074,0.07282743,68656.0,68641.0,0.0728417]
[1771701964273,0.07282588,68657.0,68648.0,0.07283478]
[1771701964474,0.07321491,68657.0,68647.0,0.07283544]
[1771701964725,0.07321491,68657.0,68649.0,0.07283385]
[1771701965269,0.07282708,68656.0,68648.0,0.07269059]
[1771701966979,0.00038903,68657.0,68650.0,0.07283225]
[1771701967185,0.00016,68660.0,68653.0,0.07282938]
[1771701967414,0.0001254,68658.0,68653.0,0.07282938]
[1771701968005,0.0001254,68658.0,68650.0,0.1632703]
[1771701968383,0.07295104,68658.0,68650.0,0.23610294]
[1771701968908,0.07315104,68658.0,68650.0,0.23610294]
[1771701969868,0.0003254,68658.0,68652.0,0.07283105]
[1771701970270,0.0003254,68658.0,68650.0,0.23610294]
[1771701970675,0.0003254,68658.0,68652.0,0.07283095]
[1771701970854,0.0002,68658.0,68650.0,0.23610336]
[1771701971224,0.0002,68658.0,68650.0,0.23610302]
[1771701971357,0.0002,68658.0,68653.0,0.07282939]
[1771701971793,0.0003254,68658.0,68653.0,0.07282939]
[1771701971947,0.0003254,68658.0,68652.0,0.0728301]
[1771701972145,0.0002,68658.0,68652.0,0.0728301]
[1771701975243,0.0002,68658.0,68653.0,0.00022]
[1771701975871,0.0003254,68658.0,68653.0,0.00022]
[1771701978997,0.0002,68658.0,68653.0,0.00022]
[1771701979177,0.0003254,68658.0,68648.0,0.29133898]
[1771701979343,0.0003254,68658.0,68648.0,0.45460928]
[1771701979705,0.0003254,68658.0,68652.0,0.07283029]
[1771701979894,0.0003254,68658.0,68653.0,0.07282985]
[1771701980109,0.0003254,68658.0,68652.0,0.07283029]
[1771701980533,0.0002,68658.0,68652.0,0.07283029]
[1771701980804,0.0001254,68657.0,68652.0,0.07283029]
[1771701981718,0.0001254,68657.0,68653.0,0.07282997]
[1771701982012,0.0002,68658.0,68648.0,0.45460928]
[1771701982013,0.0002,68658.0,68656.0,0.07282684]
[1771701982159,0.0002,68658.0,68657.0,0.07282578]
[1771701982780,0.0002,68658.0,68656.0,0.07282684]
[1771701984674,0.0002,68658.0,68657.0,0.07282578]
[1771701985049,0.0002,68658.0,68656.0,0.07282684]
[1771701987340,0.0002,68658.0,68657.0,0.07282578]
[1771701990499,0.07301523,68665.0,68661.0,0.07282067]
[1771701990500,0.0001976,68665.0,68661.0,0.07282067]
[1771701993009,0.0001976,68665.0,68660.0,0.07282232]
[1771701993214,0.0001976,68665.0,68661.0,0.07282149]
[1771701994422,0.00016,68670.0,68655.0,0.02264162]
[1771701994625,0.07308883,68670.0,68663.0,0.0728194]
[1771701996280,0.0002,68665.0,68663.0,0.0728194]
[1771702002292,0.0002,68665.0,68662.0,0.07282026]
[1771702003724,0.0002,68665.0,68661.0,0.07282154]
[1771702004121,0.0002,68665.0,68663.0,0.00022]
[1771702005039,0.0002,68665.0,68663.0,0.07303904]
[1771702010209,0.0002,68665.0,68664.0,0.07281836]
[1771702011904,0.0002,68665.0,68663.0,0.00022]
[1771702014600,0.0002,68665.0,68660.0,0.07282221]
[1771702014809,0.04638256,68664.0,68660.0,0.07282221]
[1771702015230,0.0002,68665.0,68660.0,0.07282221]
[1771702017045,0.0002,68665.0,68661.0,0.07282148]
[1771702018735,0.04658256,68665.0,68661.0,0.07282148]
[1771702019842,0.04658256,68665.0,68659.0,0.07282307]
[1771702020043,0.17871461,68665.0,68661.0,0.07282139]
[1771702020262,0.04638256,68664.0,68661.0,0.07282139]
[1771702020441,0.0002,68665.0,68661.0,0.07282139]
[1771702021763,0.0002,68665.0,68650.0,0.00038]
[1771702021965,0.04638256,68653.0,68646.0,0.00022]
[1771702022168,0.04638256,68653.0,68647.0,0.29134237]
[1771702022389,0.04638256,68653.0,68648.0,0.07283533]
[1771702022591,0.04638256,68653.0,68649.0,0.07283427]
[1771702022824,0.04638256,68653.0,68648.0,0.07283533]
[1771702023390,0.04638256,68653.0,68650.0,0.07283241]
[1771702023817,0.04638256,68653.0,68651.0,0.07283168]
[1771702024014,0.04638256,68653.0,68652.0,0.07283109]
[1771702025547,0.04638256,68653.0,68651.0,0.0728319]
[1771702026991,0.04638256,68653.0,68650.0,0.07308701]
[1771702027194,0.04638256,68653.0,68650.0,0.0002546]
[1771702028051,0.04638256,68653.0,68650.0,0.07308776]
[1771702028430,0.04638256,68653.0,68651.0,0.07283189]
[1771702030731,0.04638256,68653.0,68647.0,0.29134557]
[1771702030934,0.04638256,68653.0,68646.0,0.00022]
[1771702031752,0.04638256,68653.0,68649.0,0.0728335]
[1771702032778,0.04638256,68653.0,68646.0,0.00022]
[1771702032779,0.04638256,68653.0,68646.0,0.07305689]
[1771702033000,0.04638256,68653.0,68648.0,0.07283329]
[1771702034441,0.04638256,68653.0,68649.0,0.00022]
[1771702034640,0.04658256,68653.0,68649.0,0.00022]
[1771702036402,0.04658256,68653.0,68648.0,0.07283505]
[1771702037869,0.04658256,68653.0,68649.0,0.07283423]
[1771702038662,0.04658256,68653.0,68648.0,0.07283493]
[1771702042515,0.04658256,68653.0,68648.0,0.07305493]
[1771702044749,0.04658256,68653.0,68648.0,0.00022]
[1771702045128,0.04658256,68653.0,68648.0,0.0730553]
[1771702045747,0.04658256,68653.0,68648.0,0.00022]
[1771702046149,0.04658256,68653.0,68648.0,0.07305528]
[1771702046555,0.04658256,68653.0,68648.0,0.00022]
[1771702048160,0.04658256,68653.0,68648.0,0.07305528]
[1771702049450,0.04658256,68653.0,68648.0,0.00022]
[1771702050512,0.04658256,68653.0,68648.0,0.07305506]
[1771702051071,0.04658256,68653.0,68648.0,0.00022]
[1771702052109,0.04658256,68653.0,68648.0,0.073055]
[1771702052316,0.04658256,68653.0,68649.0,0.07283409]
[1771702052765,0.04658256,68653.0,68648.0,0.07305505]
[1771702055297,0.04658256,68653.0,68649.0,0.07283395]
[1771702058615,0.07282697,68656.0,68649.0,0.07283395]
[1771702058831,0.09601825,68656.0,68649.0,0.07283395]
[1771702062372,0.0002,68653.0,68649.0,0.07283395]
[1771702070784,0.02339128,68653.0,68649.0,0.07283395]
[1771702077110,0.02339128,68653.0,68648.0,0.00022]
[1771702077691,0.02339128,68653.0,68648.0,0.07305524]
[1771702078631,0.02319128,68649.0,68643.0,0.0003473]
[1771702079169,0.02319128,68649.0,68644.0,0.07283949]
[1771702079770,0.02319128,68649.0,68646.0,0.07283733]
[1771702080989,0.07303016,68653.0,68648.0,0.00022]
[1771702080990,0.0002,68653.0,68648.0,0.00022]
[1771702081226,0.02283009,68653.0,68648.0,0.00022]
[1771702093306,0.09690523,68652.0,68648.0,0.00022]
[1771702093509,0.09690523,68652.0,68645.0,0.07283815]
[1771702098954,0.07283245,68651.0,68644.0,0.07322845]
[1771702099168,0.07283215,68651.0,68644.0,0.00038903]
[1771702099523,0.07283215,68651.0,68644.0,0.07322855]
[1771702099746,0.07283215,68651.0,68645.0,0.00022]
[1771702104797,0.17508,68670.0,68651.0,0.17290112]
[1771702104997,0.17508,68670.0,68664.0,0.07281827]
[1771702105374,0.17508,68670.0,68660.0,0.1631039]
[1771702105375,0.17508,68670.0,68663.0,0.07281929]
[1771702106650,0.17508,68670.0,68664.0,0.07281787]
[1771702108615,0.00016,68670.0,68664.0,0.07281787]
[1771702113841,0.00036,68670.0,68664.0,0.07281787]
[1771702115076,0.00013103,68670.0,68664.0,0.07281787]
[1771702115903,0.07294332,68670.0,68663.0,0.07281929]
[1771702116140,0.00013103,68670.0,68663.0,0.07281929]
[1771702123688,0.02497973,68670.0,68663.0,0.07281929]
[1771702123886,0.09779174,68670.0,68663.0,0.07281929]
[1771702125887,0.07281313,68669.0,68662.0,0.07282024]
[1771702126114,0.09779206,68670.0,68662.0,0.07282024]
[1771702128314,0.09779206,68670.0,68663.0,0.07281929]
[1771702132850,0.09779206,68670.0,68663.0,0.07303929]
[1771702136345,0.09779206,68670.0,68662.0,0.07281943]
[1771702137922,0.09779206,68670.0,68663.0,0.07281936]
[1771702138069,0.07281325,68669.0,68662.0,0.07282026]
[1771702138515,0.09779208,68670.0,68663.0,0.07281936]
[1771702138909,0.0975409,68670.0,68663.0,0.07281936]
[1771702139838,0.0248487,68669.0,68663.0,0.07281936]
[1771702141166,0.09766198,68669.0,68662.0,0.0730403]
[1771702143091,0.07301233,68670.0,68663.0,0.07281935]
[1771702145780,0.07301305,68670.0,68660.0,0.00016]
[1771702145944,0.07301305,68670.0,68656.0,0.00022]
[1771702145945,0.07282108,68662.0,68656.0,0.00022]
[1771702146142,0.07282184,68661.0,68656.0,0.00022]
[1771702159290,0.17360213,68669.0,68651.0,0.07283191]
[1771702159520,0.09752745,68659.0,68652.0,0.07283089]
[1771702159728,0.02470206,68659.0,68653.0,0.07283001]
[1771702162519,0.02470206,68659.0,68653.0,0.07305001]
[1771702162721,0.02470206,68659.0,68653.0,0.00022]
[1771702163379,0.09752597,68659.0,68653.0,0.00022]
[1771702166382,0.09752597,68659.0,68653.0,0.07304964]
[1771702166383,0.02470206,68659.0,68653.0,0.07304964]
[1771702168648,0.09752586,68659.0,68653.0,0.00022]
[1771702169202,0.02470206,68659.0,68653.0,0.00022]
[1771702170004,0.02490206,68659.0,68653.0,0.00022]
[1771702170340,0.02490206,68659.0,68653.0,0.07304998]
[1771702180842,0.02272502,68658.0,68650.0,0.00016]
[1771702181246,0.02272502,68658.0,68651.0,0.07283116]
[1771702181645,0.09555035,68658.0,68651.0,0.07283116]
[1771702182708,0.09555035,68658.0,68653.0,0.00022]
[1771702183122,0.09555035,68658.0,68653.0,3.048e-05]
[1771702184954,0.07282536,68658.0,68653.0,3.048e-05]
[1771702185184,0.0955515,68657.0,68653.0,3.048e-05]
[1771702188958,0.07282648,68657.0,68653.0,3.048e-05]
[1771702189355,0.16182138,68659.0,68646.0,0.00022]
[1771702189530,0.09555494,68654.0,68646.0,0.07305674]
[1771702189724,0.09555405,68654.0,68647.0,0.07295982]
[1771702190199,0.02272502,68654.0,68647.0,0.07295982]
[1771702191460,0.02272502,68654.0,68648.0,0.0728352]
[1771702193449,0.07282828,68655.0,68648.0,0.0728352]
[1771702196274,0.07282828,68655.0,68643.0,0.29158048]
[1771702196275,0.02272502,68651.0,68640.0,0.0002841]
[1771702196534,0.09555823,68650.0,68643.0,0.07284044]
[1771702196696,0.09555823,68650.0,68642.0,0.07298132]
[1771702196908,0.00038903,68651.0,68642.0,0.00014]
[1771702197109,0.07283085,68654.0,68644.0,0.07283856]
[1771702197312,0.07283142,68652.0,68644.0,0.09586012]
[1771702198501,0.0002,68655.0,68644.0,0.00038903]
[1771702198716,0.04966919,68632.0,68626.0,0.0003441]
[1771702198886,0.02272502,68649.0,68604.0,0.06035698]
[1771702198887,0.16162138,68629.0,68613.0,0.07287171]
[1771702199094,0.16162138,68621.0,68608.0,0.00022]
[1771702199298,0.02285183,68611.0,68608.0,0.00022]